bitfinex/quotes_BTCUSD_20220304
["timestamp","ask_amount","ask_price","bid_price","bid_amount"]
[1646386071348,0.001,41705.0,41704.0,0.465104]
[1646386071548,0.001,41705.0,41704.0,0.489184]
[1646386071948,0.001,41705.0,41704.0,0.465104]
[1646386072649,0.001,41705.0,41704.0,0.489184]
[1646386073501,0.001,41705.0,41704.0,0.465104]
[1646386073900,0.001,41705.0,41704.0,0.489184]
[1646386074099,0.001,41705.0,41704.0,0.465104]
[1646386077045,0.001,41705.0,41704.0,0.1]
[1646386077247,0.001,41705.0,41703.0,0.003]
[1646386077948,0.28737627,41704.0,41703.0,0.003]
[1646386078148,0.65260427,41704.0,41703.0,0.003]
[1646386078349,0.70260427,41704.0,41692.0,0.31408232]
[1646386078547,0.33737627,41704.0,41691.0,0.0599993]
[1646386078748,0.33737627,41704.0,41692.0,0.31408232]
[1646386078947,0.25475034,41697.0,41692.0,0.31408232]
[1646386079149,0.21352781,41703.0,41702.0,0.07723431]
[1646386079949,0.41897156,41703.0,41702.0,0.07723431]
[1646386080250,0.67571472,41703.0,41702.0,0.07723431]
[1646386080701,0.47027097,41703.0,41702.0,0.07723431]
[1646386081202,0.83549897,41703.0,41702.0,0.07723431]
[1646386081601,0.47027097,41703.0,41702.0,0.07723431]
[1646386081797,1.02552155,41703.0,41702.0,0.07723431]
[1646386082198,0.66029355,41703.0,41702.0,0.07723431]
[1646386082801,0.21352781,41703.0,41702.0,0.07723431]
[1646386083801,0.66091508,41703.0,41702.0,0.07723431]
[1646386084002,0.49551616,41703.0,41702.0,0.07723431]
[1646386084947,0.6649255,41703.0,41702.0,0.07723431]
[1646386086548,0.49551616,41703.0,41702.0,0.07723431]
[1646386086748,0.21352781,41703.0,41702.0,0.07723431]
[1646386087548,0.42716278,41703.0,41702.0,0.07723431]
[1646386087749,0.42716278,41703.0,41702.0,0.12723431]
[1646386087750,0.21352781,41703.0,41702.0,0.12723431]
[1646386088411,0.03741147,41705.0,41702.0,0.12723431]
[1646386089215,0.365228,41704.0,41702.0,0.12723431]
[1646386089412,0.03741147,41705.0,41702.0,0.12723431]
[1646386089413,0.001,41705.0,41702.0,0.12723431]
[1646386090713,0.365228,41704.0,41702.0,0.12723431]
[1646386090913,0.001,41705.0,41702.0,0.12723431]
[1646386091716,0.365228,41704.0,41702.0,0.12723431]
[1646386091947,0.001,41705.0,41702.0,0.12723431]
[1646386092148,0.365228,41704.0,41702.0,0.12723431]
[1646386092347,0.26289692,41703.0,41702.0,0.12723431]
[1646386093148,0.001,41705.0,41702.0,0.12723431]
[1646386093945,0.03732428,41705.0,41702.0,0.12723431]
[1646386094348,0.26324421,41704.0,41702.0,0.12723431]
[1646386094550,0.62847221,41704.0,41702.0,0.12723431]
[1646386094747,0.26324421,41704.0,41702.0,0.12723431]
[1646386094948,0.001,41705.0,41702.0,0.12723431]
[1646386095350,0.365228,41704.0,41702.0,0.12723431]
[1646386095800,0.365228,41704.0,41702.0,0.07723431]
[1646386095997,0.42156935,41704.0,41702.0,0.12723431]
[1646386096203,0.05634135,41704.0,41702.0,0.12723431]
[1646386096600,0.34121936,41704.0,41702.0,0.12723431]
[1646386096900,0.28487801,41704.0,41702.0,0.12723431]
[1646386097400,0.28487801,41704.0,41702.0,0.07723431]
[1646386097401,0.365228,41703.0,41702.0,0.07723431]
[1646386097602,0.49342555,41704.0,41702.0,0.07723431]
[1646386097804,0.365228,41703.0,41702.0,0.07723431]
[1646386098002,0.06778601,41703.0,41702.0,0.07723431]
[1646386098404,0.43301401,41703.0,41702.0,0.07723431]
[1646386098801,0.06778601,41703.0,41702.0,0.07723431]
[1646386099002,0.43301401,41703.0,41702.0,0.07723431]
[1646386099203,0.06778601,41703.0,41702.0,0.07723431]
[1646386099444,0.43301401,41703.0,41702.0,0.07714068]
[1646386099845,0.06778601,41703.0,41702.0,0.07714068]
[1646386100451,0.38323625,41703.0,41702.0,0.07714068]
[1646386100645,0.38323625,41703.0,41691.0,0.01197]
[1646386100646,1.4,41702.0,41691.0,0.01197]
[1646386100849,0.18452574,41688.0,41685.0,0.06000758]
[1646386101150,0.18452574,41688.0,41677.0,0.18136168]
[1646386101348,0.18452574,41688.0,41678.0,1.110781]
[1646386101548,0.42348818,41688.0,41678.0,1.110781]
[1646386102047,0.17316128,41681.0,41679.0,0.06001517]
[1646386102249,0.17316128,41681.0,41678.0,1.110781]
[1646386102647,0.2102265,41680.0,41677.0,0.18136168]
[1646386103047,0.18962549,41679.0,41677.0,0.18136168]
[1646386103301,0.2102265,41680.0,41677.0,0.18136168]
[1646386103703,1.4,41678.0,41672.0,0.10405334]
[1646386103905,0.68011418,41677.0,41672.0,0.10405334]
[1646386104101,0.365228,41675.0,41672.0,0.10405334]
[1646386104300,0.19849871,41673.0,41672.0,0.10405334]
[1646386104501,0.61172671,41673.0,41672.0,0.10405334]
[1646386105300,1.04599652,41673.0,41672.0,0.10405334]
[1646386105801,0.84559649,41673.0,41672.0,0.10405334]
[1646386106207,1.26048267,41673.0,41672.0,0.10405334]
[1646386106402,0.95758649,41673.0,41672.0,0.10405334]
[1646386106803,1.14101542,41673.0,41672.0,0.10405334]
[1646386107045,1.51028061,41673.0,41672.0,0.10405334]
[1646386107248,1.19539443,41673.0,41672.0,0.10405334]
[1646386108347,2.24238061,41673.0,41672.0,0.10405334]
[1646386108548,2.25437061,41673.0,41672.0,0.10405334]
[1646386108946,1.4,41672.0,41669.0,0.001]
[1646386109146,0.05999,41671.0,41669.0,0.001]
[1646386109446,0.365228,41671.0,41669.0,0.001]
[1646386109646,0.048,41671.0,41669.0,0.001]
[1646386110146,0.365228,41670.0,41669.0,0.001]
[1646386110350,0.465228,41670.0,41669.0,0.001]
[1646386110797,0.365228,41670.0,41669.0,0.001]
[1646386113497,0.048,41671.0,41669.0,0.001]
[1646386114549,0.365228,41670.0,41669.0,0.001]
[1646386114748,0.19849871,41673.0,41669.0,0.001]
[1646386114949,0.365228,41672.0,41669.0,0.001]
[1646386115149,0.003,41671.0,41669.0,0.001]
[1646386116150,0.365228,41670.0,41669.0,0.001]
[1646386116552,0.365228,41672.0,41669.0,0.001]
[1646386116750,0.19849871,41673.0,41669.0,0.001]
[1646386117352,0.051,41675.0,41670.0,0.365228]
[1646386117353,0.003,41675.0,41670.0,0.365228]
[1646386117552,0.003,41675.0,41671.0,0.31480006]
[1646386117751,0.003,41675.0,41670.0,0.06002247]
[1646386117951,0.003,41675.0,41671.0,0.36480006]
[1646386118221,0.003,41675.0,41671.0,0.41480006]
[1646386118421,0.003,41675.0,41672.0,0.365228]
[1646386118623,0.2097922,41682.0,41671.0,0.41480006]
[1646386119226,0.001,41676.0,41671.0,0.41480006]
[1646386119422,0.001,41676.0,41673.0,0.26601141]
[1646386119622,0.001,41676.0,41671.0,0.41480006]
[1646386120224,0.001,41676.0,41672.0,0.06002112]
[1646386120423,0.2097922,41682.0,41673.0,0.141665]
[1646386120622,0.2097922,41682.0,41674.0,0.31480006]
[1646386120830,0.2097922,41682.0,41674.0,0.6727175]
[1646386121227,0.365228,41681.0,41674.0,0.1]
[1646386121425,0.16782191,41675.0,41674.0,0.1]
[1646386121623,0.53304991,41675.0,41671.0,0.05]
[1646386121827,0.53304991,41675.0,41669.0,0.001]
[1646386121828,0.365228,41674.0,41669.0,0.001]
[1646386122066,0.16782191,41675.0,41669.0,0.001]
[1646386122067,0.24109828,41672.0,41669.0,0.001]
[1646386122266,0.16782191,41675.0,41669.0,0.001]
[1646386122469,0.03566783,41682.0,41669.0,0.001]
[1646386123169,0.365228,41681.0,41669.0,0.001]
[1646386123367,0.21877117,41679.0,41670.0,0.22993413]
[1646386123568,0.19877332,41674.0,41670.0,0.22993413]
[1646386123869,0.002,41683.0,41673.0,0.02408]
[1646386124070,0.002,41683.0,41681.0,0.02408]
[1646386124273,0.002,41683.0,41682.0,0.437203]
[1646386124473,0.002,41683.0,41682.0,1.08105024]
[1646386124669,0.0999,41699.0,41685.0,0.02408]
[1646386124969,0.19280309,41694.0,41686.0,0.413075]
[1646386125168,0.19280309,41694.0,41688.0,0.196617]
[1646386125467,0.14830309,41694.0,41692.0,0.23963606]
[1646386125707,0.14830309,41694.0,41693.0,0.465015]
[1646386126109,0.03608245,41700.0,41693.0,0.1]
[1646386126507,0.03608245,41700.0,41693.0,0.05]
[1646386126709,0.03608245,41700.0,41689.0,0.365216]
[1646386126910,0.22465212,41700.0,41692.0,0.25653294]
[1646386127111,0.22465212,41700.0,41688.0,0.43785862]
[1646386127112,0.15495919,41695.0,41693.0,0.365216]
[1646386127310,0.15495919,41695.0,41693.0,0.415216]
[1646386127508,0.15495919,41695.0,41693.0,0.465216]
[1646386127710,0.03608245,41700.0,41693.0,0.465216]
[1646386128013,0.004,41703.0,41694.0,0.42520563]
[1646386128411,0.18073331,41698.0,41693.0,0.1]
[1646386128610,0.24114671,41699.0,41693.0,0.1]
[1646386128812,0.19558343,41697.0,41694.0,0.365216]
[1646386129210,0.19558343,41697.0,41694.0,0.415216]
[1646386129452,0.001,41706.0,41694.0,0.415216]
[1646386129658,0.21752755,41705.0,41694.0,0.36145436]
[1646386129852,0.2638747,41704.0,41694.0,0.57528791]
[1646386130052,0.03647164,41705.0,41695.0,0.425204]
[1646386130053,0.001,41705.0,41695.0,0.425204]
[1646386130253,0.001,41705.0,41698.0,0.05998337]
[1646386130455,0.001,41705.0,41699.0,0.196333]
[1646386130456,0.16613113,41704.0,41699.0,0.196333]
[1646386130654,0.001,41705.0,41699.0,0.55778736]
[1646386130854,0.001,41705.0,41699.0,0.60778736]
[1646386131455,0.001,41705.0,41699.0,0.296333]
[1646386131652,0.17106241,41700.0,41699.0,0.296333]
[1646386131853,0.17106241,41700.0,41699.0,0.1]
[1646386132052,0.17106241,41700.0,41698.0,0.048]
[1646386132053,0.17106241,41700.0,41698.0,0.098]
[1646386132254,0.17106241,41700.0,41698.0,0.048]
[1646386132854,0.24043347,41699.0,41698.0,0.048]
[1646386133310,0.24043347,41699.0,41690.0,0.048]
[1646386133314,0.365216,41698.0,41690.0,0.048]
[1646386133506,0.16288509,41691.0,41679.0,0.048]
[1646386133705,0.05,41701.0,41689.0,0.02408]
[1646386133905,0.003,41704.0,41690.0,0.244538]
[1646386134307,0.07390403,41701.0,41690.0,0.268618]
[1646386134507,0.07390403,41701.0,41691.0,0.2399506]
[1646386134706,0.21494031,41696.0,41692.0,0.413087]
[1646386134909,0.21494031,41696.0,41692.0,0.463087]
[1646386135106,0.21494031,41696.0,41692.0,0.513087]
[1646386135606,0.20494031,41696.0,41692.0,0.513087]
[1646386137452,0.20494031,41696.0,41692.0,0.098]
[1646386137650,0.20494031,41696.0,41689.0,0.003]
[1646386137849,0.20494031,41696.0,41690.0,0.515216]
[1646386138048,0.19229067,41695.0,41690.0,0.515216]
[1646386138451,0.22393524,41694.0,41684.0,0.048]
[1646386138649,0.22393524,41694.0,41681.0,0.009604]
[1646386138650,0.20243861,41687.0,41682.0,0.365216]
[1646386138849,0.22393524,41694.0,41683.0,0.365216]
[1646386139049,0.22393524,41694.0,41681.0,0.033684]
[1646386139050,0.22393524,41694.0,41681.0,0.009604]
[1646386139450,0.56995781,41697.0,41695.0,0.11274801]
[1646386139649,0.20474181,41697.0,41695.0,0.11274801]
[1646386139848,0.21850396,41696.0,41695.0,0.11274801]
[1646386140050,0.52993772,41696.0,41695.0,0.11274801]
[1646386140249,0.76130539,41696.0,41695.0,0.11274801]
[1646386140451,0.44987163,41696.0,41695.0,0.11274801]
[1646386141511,0.71726783,41696.0,41695.0,0.11274801]
[1646386142510,0.75264574,41696.0,41695.0,0.11274801]
[1646386147254,0.06476,41703.0,41695.0,0.11274801]
[1646386147456,0.06476,41703.0,41695.0,0.21274801]
[1646386147653,0.365216,41702.0,41695.0,0.21274801]
[1646386148304,0.06476,41703.0,41697.0,0.25737046]
[1646386148508,0.02344913,41701.0,41698.0,0.246329]
[1646386150806,0.02344913,41701.0,41698.0,0.05]
[1646386151208,0.2196859,41701.0,41697.0,0.05]
[1646386151414,0.02344913,41701.0,41695.0,0.21274801]
[1646386151609,0.20120972,41704.0,41695.0,0.11274801]
[1646386151610,0.02344913,41702.0,41695.0,0.11274801]
[1646386151808,0.413216,41701.0,41695.0,0.11274801]
[1646386152075,0.56393567,41696.0,41695.0,0.11274801]
[1646386152470,0.19871967,41696.0,41695.0,0.11274801]
[1646386153072,0.4304957,41696.0,41695.0,0.11274801]
[1646386153270,0.4304957,41696.0,41695.0,0.16274801]
[1646386153675,0.365216,41701.0,41695.0,0.16274801]
[1646386153871,0.02344913,41702.0,41695.0,0.16274801]
[1646386154072,0.365216,41701.0,41695.0,0.16274801]
[1646386154271,0.02344913,41702.0,41695.0,0.16274801]
[1646386154272,0.365216,41699.0,41695.0,0.16274801]
[1646386154471,0.02344913,41702.0,41695.0,0.16274801]
[1646386154676,0.2441675,41697.0,41695.0,0.16274801]
[1646386155072,0.365216,41696.0,41695.0,0.16274801]
[1646386155274,0.2441675,41697.0,41695.0,0.11274801]
[1646386155474,0.21617048,41696.0,41695.0,0.11274801]
[1646386156102,0.365216,41697.0,41695.0,0.11274801]
[1646386156302,0.22129484,41698.0,41695.0,0.11274801]
[1646386156901,0.48474523,41698.0,41695.0,0.11274801]
[1646386157703,0.22129484,41698.0,41695.0,0.11274801]
[1646386158308,0.365216,41697.0,41695.0,0.11274801]
[1646386158505,0.22129484,41698.0,41696.0,0.67664976]
[1646386158506,0.01844913,41698.0,41696.0,0.67664976]
[1646386158706,0.01844913,41698.0,41697.0,0.196339]
[1646386158904,0.001,41705.0,41696.0,0.365216]
[1646386159104,0.001,41705.0,41695.0,0.32055823]
[1646386159105,0.22543374,41702.0,41695.0,0.32055823]
[1646386159305,0.01844913,41698.0,41696.0,0.365216]
[1646386159561,0.005,41702.0,41697.0,1.4]
[1646386159764,0.001,41705.0,41696.0,0.465216]
[1646386159765,0.001,41705.0,41698.0,1.813216]
[1646386159964,0.001,41705.0,41700.0,0.02408]
[1646386160162,0.001,41705.0,41698.0,1.765216]
[1646386160163,0.001,41705.0,41702.0,0.02408]
[1646386160361,0.001,41705.0,41703.0,0.389247]
[1646386160562,0.0191,41710.0,41705.0,1.765216]
[1646386160761,0.001,41711.0,41705.0,0.415216]
[1646386160963,0.001,41714.0,41705.0,0.159967]
[1646386161160,0.001,41714.0,41707.0,0.365216]
[1646386161360,0.001,41714.0,41708.0,0.365216]
[1646386161562,0.001,41714.0,41705.0,0.159967]
[1646386161762,0.001,41714.0,41706.0,0.365216]
[1646386162261,0.001,41714.0,41707.0,0.220263]
[1646386162463,0.07243931,41715.0,41714.0,0.45]
[1646386162663,0.04053931,41715.0,41714.0,1.1252025]
[1646386162863,0.0011,41724.0,41718.0,1.4]
[1646386163084,0.0021,41728.0,41719.0,0.7472375]
[1646386163307,0.0021,41728.0,41720.0,0.048]
[1646386163508,0.20965283,41728.0,41724.0,0.20916191]
[1646386163706,0.0021,41728.0,41726.0,0.19608]
[1646386163906,0.0021,41728.0,41726.0,0.5061445]
[1646386164106,0.0021,41728.0,41726.0,0.24608]
[1646386164307,0.0021,41728.0,41726.0,0.5561445]
[1646386165108,0.0021,41728.0,41726.0,0.24608]
[1646386165709,0.00017302,41727.0,41726.0,0.24608]
[1646386166015,0.0043,41731.0,41726.0,0.24608]
[1646386166016,0.03146201,41741.0,41733.0,0.02408]
[1646386166212,0.0022,41742.0,41736.0,0.364929]
[1646386166414,0.0022,41742.0,41738.0,0.196016]
[1646386166612,0.0022,41742.0,41738.0,0.048]
[1646386166813,0.20474552,41739.0,41738.0,0.048]
[1646386167752,0.0022,41742.0,41738.0,0.048]
[1646386167953,0.0022,41742.0,41739.0,0.30738674]
[1646386168152,0.01306,41745.0,41738.0,0.048]
[1646386168153,0.00966,41745.0,41738.0,0.048]
[1646386168352,0.00966,41745.0,41739.0,0.05]
[1646386168752,0.22148981,41746.0,41739.0,0.05]
[1646386168952,0.16331182,41742.0,41738.0,0.048]
[1646386169552,0.25824017,41745.0,41738.0,0.048]
[1646386169751,0.03874994,41746.0,41738.0,0.048]
[1646386169952,0.03874994,41746.0,41736.0,0.15993438]
[1646386169953,0.03874994,41746.0,41739.0,0.30738674]
[1646386170155,0.001,41748.0,41739.0,0.67260274]
[1646386170354,0.001,41748.0,41739.0,0.77260274]
[1646386170555,0.001,41748.0,41743.0,0.195672]
[1646386170810,0.001,41748.0,41745.0,0.36516]
[1646386171010,0.001,41748.0,41745.0,0.1]
[1646386171207,0.001,41748.0,41745.0,0.05]
[1646386171408,0.001,41748.0,41744.0,0.05]
[1646386171605,0.20601283,41745.0,41743.0,0.1]
[1646386171806,0.20601283,41745.0,41743.0,0.05]
[1646386172206,0.20601283,41745.0,41741.0,0.05]
[1646386172407,0.20601283,41745.0,41739.0,0.002]
[1646386172807,0.20601283,41745.0,41739.0,0.052]
[1646386173009,0.21477425,41743.0,41739.0,0.052]
[1646386173208,0.20601283,41745.0,41739.0,0.052]
[1646386173407,0.20601283,41745.0,41739.0,0.05]
[1646386173608,0.20601283,41745.0,41738.0,0.11985851]
[1646386173809,0.20601283,41745.0,41739.0,0.05]
[1646386174209,0.42824228,41745.0,41739.0,0.05]
[1646386174666,0.1,41744.0,41738.0,0.11985851]
[1646386174866,0.1,41744.0,41737.0,0.11985005]
[1646386176570,0.1,41744.0,41738.0,0.05]
[1646386177368,0.001,41748.0,41738.0,0.05]
[1646386178068,0.001,41748.0,41741.0,0.05992381]
[1646386178336,0.001,41748.0,41745.0,0.05]
[1646386178511,0.001,41748.0,41746.0,0.365216]
[1646386178909,0.03626258,41755.0,41748.0,0.002]
[1646386179115,0.23758377,41755.0,41748.0,0.002]
[1646386179309,0.0011,41757.0,41748.0,0.002]
[1646386180711,0.0011,41757.0,41748.0,0.36437886]
[1646386181110,0.0011,41757.0,41749.0,0.30533768]
[1646386181517,0.0011,41757.0,41748.0,0.36437886]
[1646386182159,0.0011,41757.0,41749.0,0.365216]
[1646386182359,0.0011,41757.0,41749.0,0.30533768]
[1646386182560,0.0011,41757.0,41748.0,0.36437886]
[1646386182759,0.0011,41757.0,41750.0,0.365216]
[1646386182958,0.0011,41757.0,41751.0,0.05990644]
[1646386183259,0.24864386,41757.0,41751.0,0.10990644]
[1646386183459,0.0011,41757.0,41751.0,0.10990644]
[1646386184264,0.0011,41757.0,41753.0,0.02408]
[1646386184460,0.01,41759.0,41754.0,0.219569]
[1646386184659,0.01,41759.0,41756.0,0.365179]
[1646386184860,0.01,41759.0,41756.0,0.465179]
[1646386185264,0.01,41759.0,41757.0,0.02408]
[1646386185462,0.01,41759.0,41758.0,0.195467]
[1646386185703,0.01,41759.0,41758.0,0.295467]
[1646386185904,0.01,41759.0,41758.0,0.1]
[1646386186107,0.01,41759.0,41758.0,0.29541]
[1646386186304,0.009,41759.0,41758.0,0.29541]
[1646386186505,0.009,41759.0,41758.0,0.1]
[1646386187808,0.009,41759.0,41758.0,0.465216]
[1646386188307,0.009,41759.0,41758.0,0.05]
[1646386188507,0.009,41759.0,41754.0,0.002]
[1646386188508,0.374216,41759.0,41754.0,0.002]
[1646386188708,0.1,41758.0,41750.0,0.05991401]
[1646386188908,0.1695814,41753.0,41750.0,0.05991401]
[1646386189108,0.2195814,41753.0,41750.0,0.05991401]
[1646386189565,0.05,41753.0,41750.0,0.05991401]
[1646386189763,0.009,41759.0,41750.0,0.05991401]
[1646386189764,0.109,41759.0,41750.0,0.05991401]
[1646386190063,0.365216,41758.0,41750.0,0.05991401]
[1646386190561,0.31966724,41759.0,41750.0,0.05991401]
[1646386190762,0.365216,41758.0,41750.0,0.05991401]
[1646386190962,0.20386176,41754.0,41747.0,0.05]
[1646386191362,0.18096733,41752.0,41747.0,0.05]
[1646386192765,0.18096733,41752.0,41748.0,0.00187444]
[1646386193218,0.03664941,41756.0,41748.0,0.00187444]
[1646386193409,0.1,41758.0,41749.0,0.05991306]
[1646386193706,0.17294105,41757.0,41749.0,0.05991306]
[1646386193911,0.17294105,41757.0,41748.0,0.00187444]
[1646386194108,0.16656993,41757.0,41748.0,0.00187444]
[1646386194711,0.16656993,41757.0,41748.0,0.02595444]
[1646386194911,0.16656993,41757.0,41749.0,0.05991391]
[1646386195310,0.26656993,41757.0,41749.0,0.05991391]
[1646386195511,0.26656993,41757.0,41748.0,0.00187444]
[1646386196510,0.60962734,41757.0,41748.0,0.00187444]
[1646386196712,0.1,41756.0,41748.0,0.00187444]
[1646386197373,0.1,41756.0,41749.0,0.05991462]
[1646386197770,0.1,41756.0,41753.0,0.02395296]
[1646386197972,0.16656993,41757.0,41749.0,0.05991462]
[1646386198371,0.26656993,41757.0,41749.0,0.05991462]
[1646386198572,0.26656993,41757.0,41748.0,0.00187444]
[1646386198573,0.16051532,41750.0,41748.0,0.00187444]
[1646386198772,0.16051532,41750.0,41749.0,0.02395296]
[1646386199072,0.16051532,41750.0,41749.0,0.0077368]
[1646386199273,1.765216,41749.0,41728.0,1.0262]
[1646386199473,0.07161393,41738.0,41728.0,1.5262]
[1646386199675,0.07161393,41738.0,41720.0,0.00119846]
[1646386199676,0.15,41734.0,41720.0,0.00119846]
[1646386199874,0.71855368,41737.0,41720.0,0.00119846]
[1646386199875,0.86855368,41733.0,41720.0,0.00119846]
[1646386200173,0.20173537,41727.0,41720.0,0.00119846]
[1646386200373,0.20173537,41727.0,41721.0,0.365216]
[1646386200571,0.20173537,41727.0,41726.0,0.25076074]
[1646386200813,0.20173537,41727.0,41722.0,0.195958]
[1646386200814,0.4674,41736.0,41727.0,0.40347074]
[1646386201015,0.7058774,41739.0,41727.0,0.46341112]
[1646386201313,0.1,41738.0,41727.0,0.45099352]
[1646386201514,0.101,41738.0,41727.0,0.45099352]
[1646386201714,0.059944,41743.0,41729.0,1.4]
[1646386201916,0.1,41748.0,41738.0,0.02408]
[1646386202117,0.0011,41766.0,41738.0,0.02408]
[1646386202118,0.0011,41766.0,41742.0,0.02408]
[1646386202314,0.0011,41766.0,41743.0,0.389152]
[1646386202714,0.26775156,41761.0,41753.0,0.20630033]
[1646386202916,0.26775156,41761.0,41747.0,0.02408]
[1646386202917,0.26775156,41761.0,41754.0,0.364972]
[1646386203116,0.18257949,41757.0,41754.0,0.05]
[1646386203515,0.18257949,41757.0,41752.0,0.099]
[1646386203718,0.18257949,41757.0,41752.0,0.149]
[1646386204768,0.18257949,41757.0,41752.0,0.148]
[1646386205368,0.18257949,41757.0,41752.0,0.05]
[1646386205566,0.18257949,41757.0,41753.0,0.05]
[1646386205767,0.18257949,41757.0,41750.0,0.098]
[1646386205968,0.18257949,41757.0,41751.0,0.365216]
[1646386206168,0.009,41759.0,41752.0,0.05]
[1646386206370,0.009,41759.0,41752.0,0.2766721]
[1646386206570,0.009,41759.0,41753.0,0.66846338]
[1646386208069,0.009,41759.0,41756.0,0.02408]
[1646386208318,0.0001,41759.0,41758.0,0.32490198]
[1646386208619,0.0001,41759.0,41758.0,0.77614936]
[1646386209014,0.001,41769.0,41768.0,0.00239999]
[1646386209913,0.001,41769.0,41762.0,0.63859302]
[1646386210115,0.001,41769.0,41763.0,0.365216]
[1646386210319,0.001,41769.0,41765.0,0.195323]
[1646386210514,0.001,41769.0,41768.0,0.50177594]
[1646386210715,0.001,41769.0,41768.0,0.59977594]
[1646386210914,0.001,41769.0,41768.0,0.64977594]
[1646386211114,0.001,41769.0,41768.0,0.61850876]
[1646386212556,0.001,41769.0,41768.0,0.098]
[1646386213159,0.001,41769.0,41768.0,0.048]
[1646386213561,0.03750478,41769.0,41768.0,0.048]
[1646386213760,0.21479033,41769.0,41768.0,0.048]
[1646386214361,1.4,41768.0,41763.0,0.05]
[1646386214563,1.4,41768.0,41762.0,0.003]
[1646386214762,0.21479033,41769.0,41753.0,0.01196]
[1646386214763,0.21479033,41769.0,41753.0,0.31417372]
[1646386214962,0.2152791,41758.0,41753.0,0.01196]
[1646386215160,0.03750478,41769.0,41755.0,0.02408]
[1646386215361,0.03750478,41769.0,41755.0,0.30221372]
[1646386216211,0.40149687,41762.0,41755.0,0.30221372]
[1646386216413,0.40149687,41762.0,41754.0,0.365216]
[1646386216612,0.20193472,41755.0,41753.0,0.01196]
[1646386216811,0.21949585,41762.0,41754.0,0.10537029]
[1646386217011,0.21949585,41762.0,41753.0,0.01196]
[1646386217515,0.06158478,41769.0,41751.0,0.004]
[1646386217516,0.21140125,41754.0,41751.0,0.004]
[1646386217716,0.23247932,41753.0,41751.0,0.004]
[1646386218012,0.17564405,41754.0,41751.0,0.004]
[1646386218217,0.365216,41761.0,41751.0,0.004]
[1646386218411,1.15,41760.0,41743.0,0.34621372]
[1646386218613,0.049503,41765.0,41743.0,0.34621372]
[1646386218812,0.063702,41765.0,41743.0,0.34621372]
[1646386219012,0.26561517,41753.0,41745.0,0.24837786]
[1646386219215,0.26561517,41753.0,41746.0,0.365216]
[1646386219458,0.38066512,41756.0,41748.0,0.11453617]
[1646386219658,0.38066512,41756.0,41748.0,0.22907234]
[1646386219861,0.19593093,41756.0,41748.0,0.27907234]
[1646386220558,0.19593093,41756.0,41749.0,0.365216]
[1646386220559,0.25052773,41754.0,41749.0,0.365216]
[1646386220761,0.19593093,41756.0,41749.0,0.365216]
[1646386221562,0.19593093,41756.0,41750.0,0.30221372]
[1646386221761,0.20940305,41760.0,41752.0,0.57564788]
[1646386221962,0.002,41762.0,41753.0,0.30221372]
[1646386222162,0.002,41762.0,41753.0,0.35221372]
[1646386222364,0.002,41762.0,41753.0,0.05]
[1646386222561,0.002,41762.0,41749.0,0.30221372]
[1646386222762,0.18513374,41760.0,41750.0,0.365216]
[1646386223208,0.23984275,41759.0,41750.0,0.64126547]
[1646386223411,0.18513374,41760.0,41750.0,0.64126547]
[1646386224310,0.22801614,41759.0,41750.0,0.64126547]
[1646386224508,0.23513374,41760.0,41750.0,0.64126547]
[1646386224709,0.23513374,41760.0,41751.0,0.365216]
[1646386224909,0.41691968,41760.0,41755.0,0.22907234]
[1646386225109,0.36691968,41760.0,41755.0,0.22907234]
[1646386225409,0.36691968,41760.0,41755.0,0.27907234]
[1646386225410,0.365216,41759.0,41755.0,0.27907234]
[1646386225809,0.36691968,41760.0,41755.0,0.27907234]
[1646386225810,0.365216,41757.0,41755.0,0.27907234]
[1646386226013,0.26346485,41758.0,41755.0,0.27907234]
[1646386227260,0.26346485,41758.0,41755.0,0.22907234]
[1646386227462,0.365216,41757.0,41755.0,0.22907234]
[1646386227760,0.26346485,41758.0,41755.0,0.22907234]
[1646386228060,0.365216,41757.0,41755.0,0.22907234]
[1646386228461,0.53174266,41756.0,41755.0,0.22907234]
[1646386228762,0.01169234,41761.0,41755.0,0.22907234]
[1646386228960,0.001503,41767.0,41756.0,0.365216]
[1646386229160,0.30221372,41767.0,41755.0,0.27907234]
[1646386229361,0.57543647,41770.0,41755.0,0.27907234]
[1646386229560,0.05268468,41769.0,41755.0,0.27907234]
[1646386229761,0.21278269,41765.0,41755.0,0.27907234]
[1646386229961,0.24430464,41760.0,41755.0,0.05]
[1646386230162,0.24430464,41760.0,41753.0,0.365216]
[1646386230364,0.24430464,41760.0,41753.0,0.05]
[1646386230564,0.24430464,41760.0,41753.0,0.365216]
[1646386230852,0.24430464,41760.0,41752.0,0.002]
[1646386230853,0.24430464,41760.0,41751.0,0.05990229]
[1646386231050,0.04903028,41769.0,41753.0,0.365216]
[1646386231051,0.28370478,41769.0,41753.0,0.365216]
[1646386231250,0.28520778,41769.0,41754.0,0.18228156]
[1646386231453,0.30778478,41769.0,41753.0,0.05]
[1646386231651,0.31901066,41769.0,41753.0,0.05]
[1646386231850,0.39181052,41769.0,41752.0,0.1]
[1646386232050,0.39181052,41769.0,41753.0,0.365216]
[1646386232051,0.16391044,41763.0,41753.0,0.365216]
[1646386232251,0.16495705,41756.0,41754.0,0.05]
[1646386232451,0.16495705,41756.0,41755.0,0.195475]
[1646386232751,0.16495705,41756.0,41753.0,0.415216]
[1646386232950,0.30221372,41766.0,41753.0,0.415216]
[1646386233150,0.31538093,41766.0,41752.0,0.05]
[1646386233350,0.33946093,41766.0,41750.0,0.31540664]
[1646386233551,0.31538093,41766.0,41753.0,0.05990112]
[1646386233751,0.21701665,41762.0,41753.0,0.05990112]
[1646386233955,0.21251665,41762.0,41753.0,0.05990112]
[1646386235266,0.21251665,41762.0,41758.0,0.22907234]
[1646386235869,0.21251665,41762.0,41751.0,0.02436309]
[1646386236066,0.21251665,41762.0,41749.0,0.109902]
[1646386236267,0.17456378,41763.0,41753.0,0.05990116]